Cogmind - Beta 17.1 @@@ ROGUE MODE // 2026.09.03 @ 17:54:33 Player: lavinia Result: Self-destructed Performance ------------- Evolutions (1) 500 Regions Visited (2) 400 Robots Destroyed (3) 15 Value Destroyed (15) 15 Prototype IDs (0) 0 Alien Tech Used (0) 0 Bonus (0) 0 TOTAL SCORE: 930 Bonus ------- None Cogmind --------- Core Integrity 400/400 Matter 217/300 Energy 100/100 System Corruption 0% Temperature Cool (0) Movement Rolling (125) Ox3 Location -9/Materials Parts ------- > --- POWER (1) -------- (None) > --- PROPULSION (2) --- Wheel > --- UTILITY (4) ------ Large Storage Unit Sensor Array Seismic Detector > --- WEAPON (2) ------- Shock Rifle Flak Cannon > --- INVENTORY (15) --- Shock Rifle Flak Cannon Peak State ------------ > --- POWER ------------ (None) > --- PROPULSION ------- Wheel > --- UTILITY ---------- Large Storage Unit Sensor Array Seismic Detector > --- WEAPON ----------- Shock Rifle Flak Cannon > --- INVENTORY -------- (None) [Rating: 10] Favorites ----------- Power Light Ion Engine Engine Light Ion Engine Propulsion Compact Wheel Wheel Compact Wheel Utility Seismic Detector Device Seismic Detector Storage Medium Storage Unit Weapon Light Assault Rifle Energy Gun Medium Laser Ballistic Gun Light Assault Rifle Ballistic Cannon Flak Cannon Build | -11 -10 -9 ------- Run | Yrd Mat Mat Slots Evolved 2 | . . 2 Power . | . . . Propulsion . | . . . Utility 2 | . . 2 Weapon . | . . . Parts Attached 14 | 7 5 2 Power 1 | 1 . . Engine 1 | 1 . . Core . | . . . Reactor . | . . . Propulsion 3 | 2 1 . Treads . | . . . Leg . | . . . Wheel 3 | 2 1 . Hover . | . . . Flight . | . . . Utility 6 | 2 4 . Device 3 | 1 2 . Storage 3 | 1 2 . Processor . | . . . Hackware . | . . . Protection . | . . . Artifact . | . . . Weapon 4 | 2 . 2 Energy Gun 2 | 1 . 1 Energy Cannon . | . . . Ballistic Gun 1 | 1 . . Ballistic Cannon 1 | . . 1 Launcher . | . . . Special Weapon . | . . . Impact Weapon . | . . . Slashing Weapon . | . . . Piercing Weapon . | . . . Special Melee Weapon . | . . . Unidentified Prototypes . | . . . Parts Lost 5 | . 5 . Power 1 | . 1 . Propulsion 2 | . 2 . Utility 1 | . 1 . Weapon 1 | . 1 . Highest Loss Streak 3 | . 3 . To Critical Strikes . | . . . Average Backups 1 | . 1 1 Power . | . . . Propulsion . | . . . Utility . | . . . Weapon 1 | . 1 1 Tool/Special . | . . . Unused Backups 4 | . 1 3 Power . | . . . Propulsion 1 | . 1 . Utility . | . . . Weapon 3 | . . 3 Tool/Special . | . . . Average Slot Usage (%) 79 | . 85 59 Engine 6 | . 8 . Wheel 20 | . 23 11 Device 12 | . 11 19 Storage 13 | . 14 11 Energy Gun 11 | . 12 6 Ballistic Gun 11 | . 14 2 Ballistic Cannon 1 | . . 8 Peak Build Rating 10 | 7 7 10 Average Rating 6 | 5 5 8 On Entrance 3 | . 7 4 Avg Prop Armor Cover (%) . | . . . Naked Turns . | . . . Heaviest Build 31 | 12 24 31 Greatest Support 32 | 32 32 10 Greatest Overweight (x) 3 | 2 2 3 Average Overweight (x) . | . . 2 Largest Inventory Capacity 15 | 8 15 15 Average Capacity 10 | 7 10 15 Most Carried 3 | 1 3 2 Average Carried 1 | . 1 1 Final Capacity 15 | 8 15 15 Final Carried 2 | 1 2 2 Class Distribution -------------------- 100% | Mutant Dominant Class ---------------- Mutant | -10/Materials Mutant | -9/Materials Resources | -11 -10 -9 ----------- Run | Yrd Mat Mat Matter Collected 252 | 199 53 . Remotely . | . . . Salvage Created 136 | 83 53 . Parts 5 | 4 1 . Haulers Intercepted 1 | . 1 . Recyclers Shooed . | . . . Parts Field Recycled . | . . . Retrieved Matter . | . . . Parts Self-Destructed . | . . . Prevented . | . . . Parts Restored . | . . . Kills | -11 -10 -9 ------- Run | Yrd Mat Mat Combat Hostiles Destroyed . | . . . Classes Destroyed 3 | 2 1 . Tunneler 1 | 1 . . Hauler 1 | . 1 . Recycler 1 | 1 . . Best Kill Streak 1 | 1 1 . Combat Bots Only . | . . . Max Kills in Single Turn 1 | 1 1 . Gunslinging . | . . . Exploded . | . . . Melee . | . . . Uniques/NPCs Destroyed . | . . . Combat | -11 -10 -9 -------- Run | Yrd Mat Mat Hostile Shots Fired 66 | . 62 4 Missed 19 | . 19 . Hits 47 | . 43 4 Projectile 47 | . 43 4 Critical Strikes 1 | . 1 . Damage Taken 571 | . 518 53 Core 189 | . 189 . Absorbed by Shields . | . . . Core Remaining (%) 62 | 100 24 . Volleys Fired 10 | 5 5 . Largest 2 | 2 2 . Hottest 70 | 70 70 . Shots Fired 20 | 10 10 . Gun 20 | 10 10 . Cannon . | . . . Launcher . | . . . Special . | . . . Kinetic 10 | 5 5 . Thermal 10 | 5 5 . Explosive . | . . . Electromagnetic . | . . . Robot Hit Streak 4 | 4 2 . Robot Miss Streak 3 | 3 2 . Penetration Max . | . . . Secondary Targets . | . . . Shots Hit Robots 10 | 5 5 . Core Hits 5 | 3 2 . Critical Kills . | . . . Critical Parts Destroyed . | . . . Critical Strikes . | . . . Melee Attacks . | . . . Impact . | . . . Slashing . | . . . Piercing . | . . . Sneak Attacks . | . . . Combat Hostiles . | . . . Follow-up Attacks . | . . . Damage Inflicted 97 | 48 49 . Guns 97 | 48 49 . Cannons . | . . . Explosions . | . . . Melee . | . . . Ramming . | . . . Kinetic 36 | 23 13 . Thermal 61 | 25 36 . Explosive . | . . . Electromagnetic . | . . . Impact . | . . . Slashing . | . . . Piercing . | . . . Highest Corruption . | . . . Average Corruption . | . . . Corruption Purged . | . . . Corruption Blocked . | . . . Overload Shots . | . . . Overflow Damage . | . . . Projectiles . | . . . Explosions . | . . . Melee . | . . . Knockbacks . | . . . Impact . | . . . Kinetic . | . . . Secondary . | . . . Self-Inflicted Damage . | . . . Shots . | . . . Rammed . | . . . Targets Rammed . | . . . Kicked . | . . . Crushed . | . . . Highest Temperature 60 | 50 60 . Average Temperature 26 | 25 28 . Received Heat Transfer 327 | . 309 18 Siege Activations . | . . . Martial Activations . | . . . Shielding Activations . | . . . Robots Disrupted . | . . . Combat Hostiles . | . . . Robots Corrupted . | . . . Combat Hostiles . | . . . Parts Fried . | . . . Impact Corruptions . | . . . Robots Melted . | . . . Combat Hostiles . | . . . Parts Melted . | . . . Heat Transferred 185 | 74 111 . Parts Sabotaged . | . . . Parts Stolen . | . . . Parts Stripped . | . . . Power Chain Reactions . | . . . Alert | -11 -10 -9 ------- Run | Yrd Mat Mat Maximum Alert Level . | . . . Low Security (%) 100 | 100 100 100 Level 1 . | . . . Level 2 . | . . . Level 3 . | . . . Level 4 . | . . . Level 5 . | . . . High Security . | . . . Max Security . | . . . Peak Influence 125 | 5 125 52 Initial 52 | . . 52 Average 27 | . 31 38 Influence Increases 251 | 10 241 . Destroy 0b10 Robot/NC 15 | 10 5 . Destroy Leader 2 | . 2 . Successful Hack 9 | . 9 . Lose Combat Pursuer 225 | . 225 . Influence Decreases 229 | 10 116 103 Entered New Map 73 | . . 73 Time Decay 116 | 10 76 30 Lost Part 40 | . 40 . Squads Dispatched 3 | . 2 1 Investigation 2 | . 2 . Extermination . | . . . Reinforcement 1 | . . 1 Assault . | . . . Garrison . | . . . Intercept . | . . . Searches Triggered . | . . . Construction Impeded . | . . . Haulers Reinforced . | . . . Active Scanning Responses . | . . . Cargo Convoy Interrupts . | . . . Stealth | -11 -10 -9 --------- Run | Yrd Mat Mat Distress Signals 3 | . 2 1 Communications Jammed . | . . . Distress Signals . | . . . Times Spotted 24 | . 21 3 Peak Tracking Total 11 | . 11 2 Tactical Retreats 4 | . 4 . Traps | -11 -10 -9 ------- Run | Yrd Mat Mat Traps Triggered 1 | . 1 . Indirectly . | . . . Trap Hack Attempts . | . . . Triggered . | . . . Disarmed . | . . . Reprogrammed . | . . . Reused . | . . . Traps Extracted . | . . . Installed . | . . . Triggered . | . . . Machines | -11 -10 -9 ---------- Run | Yrd Mat Mat Machines Disabled . | . . . Max in Single Turn . | . . . Machines Repaired . | . . . Machines Dismantled . | . . . Machines Sabotaged . | . . . Overloaded Fab Kills . | . . . Hacking | -11 -10 -9 --------- Run | Yrd Mat Mat Machines Accessed 2 | . 2 . Terminals 2 | . 2 . Fabricators . | . . . Repair Stations . | . . . Recycling Units . | . . . Scanalyzers . | . . . Garrison Access . | . . . Total Hacks 8 | . 8 . Successful 3 | . 3 . Failed 5 | . 5 . Catastrophic 1 | . 1 . Database Lockouts . | . . . Manual 8 | . 8 . Terminals 8 | . 8 . Fabricators . | . . . Repair Stations . | . . . Recycling Units . | . . . Scanalyzers . | . . . Garrison Access . | . . . Terminal Hacks 1 | . 1 . Terminal Index 1 | . 1 . Fabricator Hacks . | . . . Repair Station Hacks . | . . . Recycling Unit Hacks . | . . . Scanalyzer . | . . . Garrison Access Hacks . | . . . Unauthorized Hacks 2 | . 2 . Terminals 2 | . 2 . Botnet 2 | . 2 . Fabricators . | . . . Repair Stations . | . . . Recycling Units . | . . . Scanalyzers . | . . . Garrison Access . | . . . Data Cores Recovered . | . . . Used . | . . . Hacking Detections 2 | . 2 . Full Trace Events 1 | . 1 . Feedback Events . | . . . Feedback Blocked . | . . . Robot Schematics Acquired . | . . . Robots Built . | . . . Authchips . | . . . Time . | . . . Total Robot Build Rating . | . . . Part Schematics Acquired . | . . . Parts Built . | . . . Authchips . | . . . Time . | . . . Total Part Build Rating . | . . . Part Studies Acquired . | . . . Parts Repaired . | . . . Time . | . . . Parts Recycled . | . . . Recycled Matter . | . . . Retrieved Matter . | . . . Retrieved Components . | . . . Parts Scanalyzed . | . . . Part Schematics Acquired . | . . . Parts Damaged . | . . . Bothacking | -11 -10 -9 ------------ Run | Yrd Mat Mat Used RIF Installer . | . . . Robots Hacked . | . . . Non-combat . | . . . Combat . | . . . Robot Hacks Applied . | . . . Relay Couplers Released . | . . . Fabnet Peak Effective % . | . . . Robots Rewired . | . . . Allies Hacked . | . . . Hacks Repelled . | . . . Allies | -11 -10 -9 -------- Run | Yrd Mat Mat Total Allies . | . . . Largest Group . | . . . Highest-Rated Group . | . . . Highest-Rated Ally . | . . . Total Orders . | . . . Ally Attacks . | . . . Total Damage . | . . . Kills . | . . . Allies Corrupted . | . . . Allies Melted . | . . . Intel | -11 -10 -9 ------- Run | Yrd Mat Mat Active Infowar (turns) 311 | 7 235 69 Sensors 75 | . 6 69 Seismic 297 | 7 229 61 Robot Analysis Total . | . . . Derelict Logs Recovered . | . . . Drone Launches . | . . . Drone Recoveries . | . . . Exploration | -11 -10 -9 ------------- Run | Yrd Mat Mat Turns Passed 433 | 67 297 69 Spaces Moved 361 | 43 268 50 Core 7 | 7 . . Treads . | . . . Legs . | . . . Wheels 354 | 36 268 50 Hover . | . . . Flight . | . . . Fastest Speed 50 | 50 90 110 Average Speed 102 | 97 100 121 Slowest Speed 150 | 150 110 125 Overloaded Moves . | . . . Propulsion Burnouts . | . . . Robots Hopped . | . . . Potential Cave-ins . | . . . Cave-ins Triggered . | . . . Exploration Rate (%) 24 | 4 61 8 Regions Visited 2 Branch Regions . Pre-discovered Areas . | . . . Known Exits Taken . | . . . Unknown Exits Taken 2 | 1 1 . Scrap Searched . | . . . Spaces Dug . | . . . Terrain Destroyed . | . . . Melee . | . . . Projectile . | . . . AOE . | . . . Terrain Rammed . | . . . Walls Destroyed . | . . . Machines Disabled . | . . . Actions | -11 -10 -9 --------- Run | Yrd Mat Mat Total 399 | 55 286 58 Wait 4 | . 4 . Move 359 | 42 267 50 Hop . | . . . Pick Up 5 | 1 2 2 Fast Attach 12 | 7 2 3 Attach . | . . . Detach . | . . . Swap 3 | . 3 . Drop 6 | . 3 3 Fire 10 | 5 5 . Melee . | . . . Ram . | . . . Kick . | . . . Crush . | . . . Escape Stasis . | . . . Rewire . | . . . Trap . | . . . Miscellaneous . | . . . Route ------- -11/Scrapyard -10/Materials (discovered 2 exits: [*Mat x2]) -9/Materials History --------- Turn | Location | Event 16 | -11/Scrapyard | Discovered new exit (range 15) 68 | -11/Scrapyard | Entered Materials 272 | -10/Materials | Lost 3 parts (1p1n1u) 278 | -10/Materials | Core integrity fell below 50% 283 | -10/Materials | Discovered new exit (range 10) 317 | -10/Materials | Build established: Mutant 343 | -10/Materials | Discovered new exit (range 16) 365 | -10/Materials | Entered another Materials area 365 | -9/Materials | Evolved 2 slots: Utility x2 434 | -9/Materials | Self-destructed Last Messages --------------- 00335_ Med. Laser destroyed. 00340_ T-07 Excavator is excavating. 00343_ EXIT=FOUND 00344_ T-07 Excavator is excavating. PARAMETERS=UTILITY+2 LOCATION=UNKNOWN GOAL=ESCAPE 00365_ Dropped Seismic Detector. 00372_ O-16 Technician: "IFF HANDSHAKE FAILED. SECURING TERMINAL." 00373_ Acquired Seismic Detector. 00374_ Dropped Lgt. Assault Rifle. 00375_ Dropped Assault Rifle. 00379_ Acquired Flak Cannon. 00382_ Acquired Shock Rifle. 00388_ Acquired Flak Cannon. 00412_ K-01 Serf cleans the Repair Station. 00418_ ALERT: Hostiles spotted, dispatching reinforcements to Terminal M004. 00424_ W-16 Scout sends out distress signal. Map ----- +----------------------------------------------------+ | | | | | | | | | | | | | | | | | | | | | ?????????????????????????????????????????????????? | | ?????????????????????????????????????????????????? | | ?????????????????????????????????????????????????? | | ?????????????????????????????????????????????????? | | ?????????????????????????????????????????????????? | | ?????????????????????????????????????????????????? | | ?????????????????????????????????????????????????? | | ?????????????????????????????????????????????????? | | ?????????????????????????????????????????????????? | | ?????????????????????????????????????????????????? | | ????????????????????????#######??????????????????? | | ????????????????????????# ??????????????????? | | ######????????????####### """""??????????????????? | | ############## # """""??????????????????? | | # """"" ?????????????????? | | " " /@""""" ?????????????????? | | # """"" ?????????????????? | | ###+######+### ?# """""??????????????????? | | ###### ??# ### ## """""??????????????????? | | ?????# # #?# ## ??????????????????? | | ?????# " " # #?# ########??????????????????? | | ?????# "R" # #?# #?????????????????????????? | | ?????# """ # #?# #?????????????????????????? | | ?????######### #?# #?????????????????????????? | | ?????????????# #?# #?????????????????????????? | | ?????????????#####? ?????????????????????????? | | ??????????????????? ?????????????????????????? | | ?????????????????? ????????????????????????? | | ?????????????????? ????????????????????????? | | ?????????????????? ???????????????????????? | | ?????????????????? ????????????????????????? | | ??????????????????? ?????????????????????????? | | ?????????????????????????????????????????????????? | | ?????????????????????????????????????????????????? | | ?????????????????????????????????????????????????? | | ?????????????????????????????????????????????????? | | ?????????????????????????????????????????????????? | | ?????????????????????????????????????????????????? | | ?????????????????????????????????????????????????? | | ?????????????????????????????????????????????????? | +----------------------------------------------------+ Best States ------------- Heat Dissipation 28 Energy Generation 10 Energy Capacity 125 Matter Stores 277 Matter Capacity 300 Sight Range 16 Robot Scan Range 14 Terrain Scan Density 10 Evasion (%) 42 Item Schematics ----------------- None Robot Schematics ------------------ None Fabricated ------------ Nothing Repaired ---------- Nothing Studied --------- None Alien Tech Used ----------------- None Achievements -------------- None Challenges ------------ None Game ------ Seed RelayStealthUnit Manual? 0 Play Time 00:06:27 Cumulative 20.4 hours Start 2026.09.03 @ 17:48:50 End 2026.09.03 @ 17:54:33 Sessions 1 Manual Loads 0 Difficulty Rogue Special Mode None Game No. 40 Rogue 40 Adventurer 0 Explorer 0 Win Type - Total 0 Types 0/0/0/0/0/0/0/0/0/0 Lore% 15 Gallery% 14 Achievement% 15 Wizard Run 0 Options --------- Layout 1 ASCII 0 Keyboard 0 Movement Numpad Keybinds 0 Fullscreen 1 Font 24/Smallcaps Map View 50x35 Zoom Use 0% Tactical HUD 1 Map Filters NONE Filters NONE Steam 1 RUN: 0195dbfa-ae31-40da-895e-318e1d82c1a7